bitfinex-derivatives/quotes_SOLF0:USTF0_20260211
["timestamp","ask_amount","ask_price","bid_price","bid_amount"]
[1770775921681,6.73598559,84.045,84.01,13.62418696]
[1770775925184,6.73598559,84.045,83.977,152.96]
[1770775925185,6.75325796,84.056,84.02,2.90438696]
[1770775925587,6.75325796,84.056,84.03,2.90438696]
[1770775926086,6.75325796,84.056,84.028,10.7175]
[1770775926278,6.75262702,84.069,84.028,10.7175]
[1770775926476,6.75262702,84.069,84.038,10.7163]
[1770775927688,6.75262702,84.059,84.01,2.89881826]
[1770775928387,6.76727722,84.071,84.024,10.718]
[1770775929383,16.89881826,84.08,83.983,47.0]
[1770775929384,14.0,84.08,84.03,2.89881826]
[1770775929784,20.76727722,84.08,84.03,2.89881826]
[1770775929989,6.76727722,84.079,84.04,2.89881826]
[1770775930488,6.76727722,84.079,84.041,10.7159]
[1770775930689,6.76727722,84.079,84.03,2.89881826]
[1770775931790,6.71114938,84.077,84.03,13.61611826]
[1770775933191,6.71114938,84.077,84.036,10.7165]
[1770775935691,6.72970676,84.075,84.036,10.7165]
[1770775943106,10.712,84.073,84.029,10.7174]
[1770775943306,6.71130433,84.072,84.029,10.7174]
[1770775943708,6.71130433,84.059,84.006,47.0]
[1770775943897,6.71130433,84.059,83.974,21.75043189]
[1770775943898,6.71130433,84.049,83.99,49.89881826]
[1770775944107,14.0,84.09,83.974,10.85661663]
[1770775944108,2.89881826,84.03,83.974,10.85661663]
[1770775944299,2.89881826,84.03,83.944,10.85661663]
[1770775944300,6.70390016,83.999,83.944,10.85661663]
[1770775944499,6.70390016,83.999,83.94,2.89881826]
[1770775945098,6.70390016,83.991,83.947,10.7279]
[1770775947603,6.70390016,83.991,83.954,10.727]
[1770775947805,35.75,84.057,83.913,151.52]
[1770775947806,6.68678306,84.022,83.97,2.89881826]
[1770775948109,6.68678306,84.019,83.96,2.89881826]
[1770775948911,6.70679265,84.014,83.964,10.7257]
[1770775950012,6.70679265,84.014,83.97,2.89881826]
[1770775951609,6.76696827,84.009,83.956,10.7267]
[1770775951807,6.76696827,84.009,83.95,2.89881826]
[1770775952011,2.89881826,84.02,83.97,2.89881826]
[1770775952212,6.76713389,84.019,83.97,2.89881826]
[1770775952713,6.76713389,84.017,83.972,10.7247]
[1770775955206,6.76756039,84.015,83.972,10.7247]
[1770775956212,6.77377226,84.012,83.964,10.7257]
[1770775958508,6.77417076,84.009,83.96,2.89881826]
[1770775963815,6.77417076,84.009,83.953,10.7271]
[1770775964917,10.7204,84.007,83.953,10.7271]
[1770775965113,6.74108304,84.006,83.953,10.7271]
[1770775967418,6.7410588,84.003,83.953,10.7271]
[1770775972019,6.7485499,83.999,83.95,2.89881826]
[1770775973721,6.75058976,83.996,83.95,2.89881826]
[1770775975417,6.75058976,83.996,83.95,2.90452914]
[1770775976325,6.75058976,83.996,83.951,10.7274]
[1770775978526,6.75781464,83.994,83.951,10.7274]
[1770775979824,6.75781464,83.992,83.933,47.0]
[1770775980125,6.75781464,83.979,83.93,2.90452914]
[1770775980321,6.75779766,83.993,83.95,2.90452914]
[1770775981029,6.75779766,83.992,83.95,2.90452914]
[1770775981527,6.75779766,83.992,83.94,10.7289]
[1770775981528,6.75779766,83.992,83.94,13.63342914]
[1770775982123,2.90452914,84.0,83.94,2.90452914]
[1770775982124,6.75779766,83.99,83.94,2.90452914]
[1770775982429,6.81944357,83.989,83.94,2.90452914]
[1770775983727,6.81944357,83.985,83.931,10.73]
[1770775983928,6.81944357,83.979,83.93,2.90452914]
[1770775984242,14.0,83.99,83.898,10.85661663]
[1770775984243,6.8023362,83.955,83.898,10.85661663]
[1770775984528,6.8023362,83.955,83.91,2.90452914]
[1770775984924,6.8023362,83.969,83.93,2.90452914]
[1770775985930,6.8023362,83.989,83.93,2.90452914]
[1770775986929,6.7336291,83.982,83.93,2.90452914]
[1770775987134,6.7336291,83.979,83.93,2.90452914]
[1770775987425,6.7336291,83.979,83.928,10.7304]
[1770775987632,6.7336291,83.976,83.928,10.7304]
[1770775988021,6.7336291,83.976,83.92,2.90452914]
[1770775988626,6.68327556,83.965,83.917,10.7317]
[1770775988834,6.68327556,83.979,83.92,2.90452914]
[1770775989136,6.68327556,83.979,83.92,2.90647231]
[1770775989328,6.68327556,83.967,83.92,2.90647231]
[1770775990934,6.70057002,83.965,83.92,2.90647231]
[1770775994536,6.73024696,83.963,83.92,2.90647231]
[1770776009344,2.90647231,83.98,83.92,2.90647231]
[1770776009345,6.7356157,83.957,83.92,2.90647231]
[1770776014655,6.7356157,83.957,83.921,10.7313]
[1770776018455,6.7356157,83.957,83.914,10.7322]
[1770776019165,2.90647231,83.98,83.914,10.7322]
[1770776019166,6.75613905,83.954,83.914,10.7322]
[1770776022366,6.75613905,83.954,83.91,2.90647231]
[1770776025270,6.74789501,83.952,83.91,2.90647231]
[1770776028368,6.74789501,83.952,83.91,13.76308894]
[1770776028867,6.74789501,83.952,83.91,2.90647231]
[1770776029167,6.74789501,83.952,83.911,10.85661663]
[1770776031073,6.72103596,83.95,83.911,10.85661663]
[1770776034368,17.44873596,83.95,83.911,10.85661663]
[1770776034676,6.70315625,83.949,83.9,13.76308894]
[1770776035378,6.70315625,83.949,83.901,10.85661663]
[1770776035675,6.70315625,83.946,83.902,10.7336]
[1770776040578,11.07764131,83.987,83.887,47.0]
[1770776040579,3.8593754,83.929,83.888,3.8151199]
[1770776042682,3.8593754,83.927,83.888,3.8151199]
[1770776051783,3.8593754,83.927,83.89,2.90955339]
[1770776052194,3.8593754,83.927,83.891,3.8151199]
[1770776053389,10.7294,83.936,83.892,3.8151199]
[1770776053591,14.5887754,83.936,83.901,3.8151199]
[1770776053790,14.5887754,83.936,83.9,2.90955339]
[1770776053791,3.8593754,83.948,83.91,6.72467329]
[1770776053992,3.8593754,83.948,83.911,3.8151199]
[1770776056887,3.8593754,83.948,83.907,163.08]
[1770776056888,3.8593754,83.959,83.92,6.72467329]
[1770776057189,3.8593754,83.959,83.921,3.8151199]
[1770776058391,10.7266,83.958,83.921,3.8151199]
[1770776058594,3.8593754,83.957,83.921,3.8151199]
[1770776063699,2.90955339,83.97,83.913,10.7323]
[1770776063700,3.93941618,83.955,83.913,10.7323]
[1770776063906,3.93941618,83.949,83.901,3.83931435]
[1770776064504,3.93941618,83.949,83.904,3.83931435]
[1770776065499,3.93941618,83.949,83.91,2.90955339]
[1770776065703,3.93941618,83.959,83.913,3.83931435]
[1770776065903,3.93941618,83.959,83.869,21.4759]
[1770776065904,3.93941618,83.959,83.93,2.90955339]
[1770776066800,3.93941618,83.959,83.93,6.74886774]
[1770776067707,3.93941618,83.959,83.911,180.35181435]
[1770776067900,3.93941618,83.959,83.911,14.57181435]
[1770776068805,3.93941618,83.957,83.911,14.57181435]
[1770776069207,3.93941618,83.957,83.912,3.83931435]
[1770776072604,3.93941618,83.955,83.912,3.83931435]
[1770776074910,3.93941618,83.949,83.912,3.83931435]
[1770776075212,3.93941618,83.949,83.902,10.7337]
[1770776076296,3.93941618,83.947,83.907,3.83931435]
[1770776076500,3.93941618,83.947,83.911,3.83931435]
[1770776077012,3.93941618,83.969,83.911,3.83931435]
[1770776077710,3.93941618,83.955,83.911,3.83931435]
[1770776078803,14.66791618,83.944,83.911,3.83931435]
[1770776079910,3.93941618,83.944,83.911,3.83931435]
[1770776096214,95.08,83.978,83.883,4.04194377]
[1770776096215,3.7004218,83.927,83.883,4.04194377]
[1770776096426,3.7004218,83.927,83.872,4.04194377]
[1770776096810,3.7004218,83.919,83.872,4.04194377]
[1770776097824,3.7004218,83.913,83.872,4.04194377]
[1770776098721,3.7004218,83.909,83.872,4.04194377]
[1770776100215,2.91048077,83.92,83.842,14.52261861]
[1770776100216,10.7317,83.919,83.874,4.04194377]
[1770776100422,3.7004218,83.918,83.874,4.04194377]
[1770776101822,3.7004218,83.915,83.874,4.04194377]
[1770776103822,3.7004218,83.913,83.874,4.04194377]
[1770776105521,3.7004218,83.955,83.874,4.04194377]
[1770776105717,3.7004218,83.955,83.901,4.04194377]
[1770776105913,3.7004218,83.955,83.858,26.39265425]
[1770776105914,3.7004218,83.955,83.92,2.91048077]
[1770776106118,3.7004218,83.955,83.92,6.95242454]
[1770776107325,3.7004218,83.955,83.921,4.04194377]
[1770776107919,3.7004218,83.973,83.924,4.04194377]
[1770776108124,3.7004218,83.973,83.931,4.04194377]
[1770776113625,3.7004218,83.985,83.941,4.04194377]
[1770776113826,2.9062477,84.0,83.951,4.04194377]
[1770776114025,10.7219,83.995,83.951,4.04194377]
[1770776114427,3.7004218,83.999,83.951,4.04194377]
[1770776114723,166.6001,84.089,83.919,95.1]
[1770776114724,3.7004218,84.012,83.971,4.04194377]
[1770776116926,14.0,84.02,83.971,4.04194377]
[1770776117122,14.0,84.02,83.981,4.04194377]
[1770776117825,3.7004218,84.024,83.981,4.04194377]
[1770776123731,3.79352692,84.019,83.981,4.04194377]
[1770776128634,3.79352692,84.019,83.983,4.04641716]
[1770776130639,3.79352692,84.029,83.983,4.04641716]
[1770776132438,3.79352692,84.029,83.985,4.04641716]
[1770776135339,3.79352692,84.029,83.987,4.04641716]
[1770776138547,3.79352692,84.029,83.988,10.7227]
[1770776138745,3.79352692,84.029,83.989,4.04641716]
[1770776139146,14.0,84.03,83.991,4.04641716]
[1770776139349,3.79352692,84.052,84.001,4.04641716]
[1770776139545,3.79352692,84.05,84.001,4.04641716]
[1770776139744,3.79352692,84.05,83.958,21.453]
[1770776139745,3.79352692,84.05,84.012,10.7197]
[1770776140048,10.7132,84.063,84.021,4.04641716]
[1770776140049,3.79352692,84.062,84.021,4.04641716]
[1770776142350,123.78,84.069,83.974,4.04641716]
[1770776142351,3.79352692,84.029,83.974,4.04641716]
[1770776142549,3.79352692,84.019,83.974,4.04641716]
[1770776144857,3.79352692,84.019,83.974,14.77091716]
[1770776145159,3.79352692,84.019,83.975,4.04641716]
[1770776146448,3.79352692,84.019,83.964,14.77211716]
[1770776146650,3.79352692,84.019,83.971,4.04641716]
[1770776147052,95.0,84.023,83.971,4.04641716]
[1770776147247,6.69977462,84.03,83.971,4.04641716]
[1770776147454,3.79352692,84.029,83.971,4.04641716]
[1770776147754,3.79352692,84.029,83.985,4.04641716]
[1770776149863,3.79352692,84.029,83.99,4.04641716]
[1770776154765,3.76516921,84.039,83.995,4.10288405]
[1770776154964,125.08,84.045,83.995,4.10288405]
[1770776155761,2.9062477,84.06,84.006,4.10288405]
[1770776155966,2.9062477,84.06,83.957,166.8586]
[1770776155967,2.9062477,84.06,84.011,4.10288405]
[1770776156868,2.9062477,84.06,84.017,4.10288405]
[1770776157968,3.76516921,84.061,84.02,4.10288405]
[1770776158662,16.9062477,84.07,84.02,4.10288405]
[1770776158663,16.9062477,84.07,84.025,4.10288405]
[1770776158862,3.76516921,84.069,84.025,4.10288405]
[1770776159068,3.76516921,84.059,84.025,4.10288405]
[1770776159268,3.76516921,84.059,84.025,14.82078405]
[1770776160363,3.76516921,84.059,84.025,10.7179]
[1770776161159,2.9062477,84.05,84.014,4.10288405]
[1770776162170,3.76516921,84.059,84.014,4.10288405]
[1770776168274,3.76516921,84.049,84.003,4.10288405]
[1770776169075,3.76516921,84.049,84.006,4.10288405]
[1770776169475,10.7142,84.055,84.006,4.10288405]
[1770776170271,3.76516921,84.06,84.008,4.10288405]
[1770776170566,3.76516921,84.069,84.021,4.10288405]
[1770776171678,3.76516921,84.069,84.027,10.7176]
[1770776171879,3.76516921,84.069,84.028,4.10288405]
[1770776172070,124.84,84.09,84.028,4.10288405]
[1770776172266,294.10026172,84.1,84.041,4.10288405]
[1770776172267,10.7096,84.092,84.041,4.10288405]
[1770776172477,10.7096,84.092,84.043,4.10288405]
[1770776172478,3.76516921,84.089,84.043,4.10288405]
[1770776174479,3.76516921,84.099,84.051,4.10288405]
[1770776175589,3.76516921,84.097,84.051,4.10288405]
[1770776175785,3.76516921,84.089,84.051,4.10288405]
[1770776177787,297.86543093,84.1,84.061,4.10288405]
[1770776178088,3.76516921,84.114,84.061,4.10288405]
[1770776178692,2.89868418,84.11,84.063,4.10288405]
[1770776178879,3.76516921,84.109,84.063,4.10288405]
[1770776179783,128.1,84.116,84.065,4.10288405]
[1770776180085,3.9228386,84.115,84.065,4.10288405]
[1770776180287,2.89868418,84.11,84.067,3.8721468]
[1770776180491,3.9228386,84.109,84.067,3.8721468]
[1770776190290,3.9228386,84.109,84.07,2.89868418]
[1770776190492,3.9228386,84.109,84.071,3.80014358]
[1770776190893,130.1,84.117,84.073,3.80014358]
[1770776191790,130.1,84.117,84.076,3.80014358]
[1770776192795,133.91238763,84.117,84.076,3.80014358]
[1770776192997,3.81238763,84.116,84.076,3.80014358]
[1770776195790,3.81238763,84.109,84.061,3.80014358]
[1770776196697,3.81238763,84.108,84.062,10.7132]
[1770776196897,3.81238763,84.107,84.062,10.7132]
[1770776197498,3.81238763,84.107,84.062,14.51334358]
[1770776197994,3.81238763,84.107,84.063,3.80014358]
[1770776198892,3.81238763,84.107,84.062,10.7132]
[1770776199403,3.81238763,84.099,84.062,10.7132]
[1770776200687,3.81238763,84.099,84.034,10.84828243]
[1770776200688,132.08,84.108,84.063,3.80014358]
[1770776200892,3.81238763,84.107,84.063,3.80014358]
[1770776207598,3.81238763,84.105,84.063,3.80014358]
[1770776207999,3.81238763,84.097,84.063,3.80014358]
[1770776208497,10.7087,84.098,84.05,10.7148]
[1770776208498,3.81238763,84.089,84.05,10.7148]
[1770776210197,3.77792716,84.103,84.056,3.77047338]
[1770776210391,133.58,84.113,84.061,3.77047338]
[1770776211004,10.707,84.112,84.066,3.77047338]
[1770776211898,3.77792716,84.108,84.066,3.77047338]
[1770776214802,3.77792716,84.099,84.055,3.77047338]
[1770776215709,3.77792716,84.097,84.055,3.77047338]
[1770776222904,3.77792716,84.089,84.05,10.84828243]
[1770776223115,3.77792716,84.079,84.041,10.84828243]
[1770776223407,3.77792716,84.079,84.04,21.56438243]
[1770776224311,3.77792716,84.079,84.04,10.84828243]
[1770776225307,3.77792716,84.079,84.039,10.84828243]
[1770776225705,3.77792716,84.077,84.035,10.84828243]
[1770776225904,3.77792716,84.077,84.036,10.84828243]
[1770776226113,3.77792716,84.077,84.036,10.95615283]
[1770776226314,3.77792716,84.069,84.035,10.95615283]
[1770776226613,3.77792716,84.068,84.026,10.95615283]
[1770776227016,3.77792716,84.058,84.017,10.95615283]
[1770776227207,3.77792716,84.058,84.014,3.77047338]
[1770776227809,3.77792716,84.058,84.02,2.89797849]
[1770776228010,2.89797849,84.07,84.02,2.89797849]
[1770776228011,2.89797849,84.07,84.021,3.77047338]
[1770776228317,94.92,84.08,84.031,3.77047338]
[1770776228514,14.86634845,84.118,84.018,11.7600814]
[1770776228515,6.67590565,84.11,84.061,3.77047338]
[1770776228818,3.77792716,84.109,84.061,3.77047338]
[1770776229018,10.7083,84.102,84.061,3.77047338]
[1770776230316,3.77792716,84.098,84.061,3.77047338]
[1770776232436,3.77792716,84.098,84.05,13.61267849]
[1770776232637,3.77792716,84.098,84.05,10.7147]
[1770776232934,3.77792716,84.098,84.052,14.48497338]
[1770776233136,3.77792716,84.098,84.053,3.77047338]
[1770776233435,3.77792716,84.096,84.053,3.77047338]
[1770776235936,10.7082,84.103,84.053,3.77047338]
[1770776236336,3.77792716,84.102,84.053,3.77047338]
[1770776236734,3.77792716,84.102,84.055,3.77047338]
[1770776237636,10.7082,84.103,84.055,3.77047338]
[1770776237637,3.77792716,84.099,84.055,3.77047338]
[1770776238032,2.89788301,84.1,84.044,14.72662621]
[1770776238033,3.77792716,84.092,84.044,14.72662621]
[1770776238238,3.77792716,84.092,84.045,3.77047338]
[1770776238738,3.77792716,84.092,84.046,3.77047338]
[1770776241240,4.0563589,84.09,84.047,3.83376281]
[1770776241637,4.0563589,84.089,84.047,3.83376281]
[1770776245640,3.88245793,84.086,84.042,10.7158]
[1770776249546,3.88245793,84.086,84.044,10.7155]
[1770776255857,3.88245793,84.086,84.044,14.54698166]
[1770776256656,3.88245793,84.084,84.044,14.54698166]
[1770776257558,3.88245793,84.084,84.027,61.52261861]
[1770776257559,3.88245793,84.069,84.024,3.83148166]
[1770776257755,3.88245793,84.059,84.015,10.95500457]
[1770776257959,3.88245793,84.059,84.014,3.83148166]
[1770776258854,3.88245793,84.053,84.014,3.83148166]
[1770776263760,3.88245793,84.051,84.014,3.83148166]
[1770776265954,2.89788301,84.06,84.014,3.83148166]
[1770776265955,14.59725793,84.05,84.014,3.83148166]
[1770776266464,3.88245793,84.049,84.014,3.83148166]
[1770776268257,3.88245793,84.049,84.006,167.82]
[1770776269059,3.88245793,84.046,84.006,167.82]
[1770776269460,3.88245793,84.046,84.01,2.89788301]
[1770776269664,2.89788301,84.06,84.01,2.89788301]
[1770776269665,3.88245793,84.059,84.011,3.83148166]
[1770776269963,3.88245793,84.059,84.021,3.83148166]
[1770776272868,4.0997915,84.056,84.021,3.83148166]
[1770776283870,11.11773321,84.098,83.996,22.87819733]
[1770776283871,4.0997915,84.099,84.051,4.08138258]
[1770776284062,4.0997915,84.099,84.05,2.89788301]
[1770776284063,4.0997915,84.099,84.06,6.97926559]
[1770776284465,4.0997915,84.099,84.061,4.08138258]
[1770776285067,4.0997915,84.119,84.061,4.08138258]
[1770776285269,10.7069,84.113,84.071,4.08138258]
[1770776285874,4.0997915,84.089,84.037,4.08138258]
[1770776286362,4.0997915,84.1,84.051,4.08138258]
[1770776287566,4.0997915,84.1,84.06,2.89788301]
[1770776287767,4.0997915,84.1,84.061,4.08138258]
[1770776289374,4.0997915,84.115,84.071,4.08138258]
[1770776294174,4.0997915,84.113,84.071,4.08138258]
[1770776294379,2.89788301,84.11,84.071,4.08138258]
[1770776294879,2.89709799,84.11,84.071,4.08138258]
[1770776296474,4.0997915,84.109,84.071,4.08138258]
[1770776301978,3.95418233,84.108,84.063,10.7131]
[1770776302381,139.33418233,84.115,84.067,3.96582347]
[1770776302577,3.95418233,84.114,84.071,3.96582347]
[1770776303474,302.38413511,84.152,84.083,4.04250863]
[1770776303475,4.02530091,84.126,84.083,4.04250863]
[1770776303675,135.5,84.131,84.083,4.04250863]
[1770776304783,135.5,84.131,84.086,4.04250863]
[1770776304980,135.5,84.131,84.091,4.04250863]
[1770776305182,10.7029,84.144,84.091,4.04250863]
[1770776305387,4.02530091,84.143,84.091,4.04250863]
[1770776305684,4.02530091,84.143,84.058,47.0]
[1770776305685,4.02530091,84.143,84.101,4.04250863]
[1770776307979,4.02530091,84.139,84.101,4.04250863]
[1770776308181,4.02530091,84.139,84.057,10.89940678]
[1770776308182,4.02530091,84.129,84.084,10.7105]
[1770776308673,4.02530091,84.127,84.084,10.7105]
[1770776313584,4.02530091,84.127,84.077,4.04250863]
[1770776314183,4.02530091,84.119,84.068,10.7125]
[1770776315688,4.02530091,84.109,84.068,10.7125]
[1770776315881,4.02530091,84.109,84.066,4.04250863]
[1770776318090,4.02530091,84.106,84.066,4.04250863]
[1770776328812,4.02530091,84.102,84.066,4.04250863]
[1770776337606,3.71882471,84.099,84.066,4.04250863]
[1770776338313,10.7085,84.1,84.055,3.69709414]
[1770776338314,3.71882471,84.089,84.055,3.69709414]
[1770776338514,10.7098,84.09,84.055,3.69709414]
[1770776342516,10.7088,84.098,84.061,3.69709414]
[1770776342714,3.71882471,84.097,84.061,3.69709414]
[1770776344815,3.71882471,84.094,84.061,3.69709414]
[1770776345520,2.89750576,84.08,84.043,10.89940678]
[1770776345723,2.89750576,84.08,83.995,21.4436]
[1770776345724,3.71882471,84.079,84.034,3.69709414]
[1770776346823,10.7115,84.076,84.034,3.69709414]
[1770776347424,3.71882471,84.075,84.034,3.69709414]
[1770776348226,10.7115,84.076,84.034,3.69709414]
[1770776348227,3.71882471,84.069,84.034,3.69709414]
[1770776353329,3.71882471,84.049,84.005,3.69709414]
[1770776353928,3.71882471,84.048,84.005,3.69709414]
[1770776354234,3.71882471,84.039,83.991,3.69709414]
[1770776354429,3.71882471,84.028,83.991,3.69709414]
[1770776356336,3.71882471,84.026,83.991,3.69709414]
[1770776356938,3.71882471,84.026,83.977,3.69709414]
[1770776357236,3.71882471,84.026,83.976,10.7243]
[1770776357237,3.71882471,84.019,83.964,3.69709414]
[1770776357640,3.71882471,84.016,83.967,3.69709414]
[1770776358041,3.71882471,84.032,83.981,3.69709414]
[1770776358239,2.90280165,84.04,83.981,3.69709414]
[1770776358240,148.3,84.031,83.981,3.69709414]
[1770776358440,148.34,84.036,83.991,3.69709414]
[1770776358943,3.71882471,84.035,83.991,3.69709414]
[1770776359246,3.71882471,84.038,83.991,3.69709414]
[1770776360734,3.80253361,84.029,83.991,3.69709414]
[1770776364050,3.80253361,84.029,83.979,3.7852881]
[1770776365542,112.62,84.036,83.97,2.90280165]
[1770776365543,3.84196526,84.019,83.97,6.68808975]
[1770776365751,3.84196526,84.019,83.971,3.7852881]
[1770776367043,3.84196526,84.019,83.974,3.7852881]
[1770776367746,3.84196526,84.031,83.981,3.7852881]
[1770776368248,3.84196526,84.031,83.991,3.7852881]
[1770776369953,14.55926526,84.031,83.991,3.7852881]
[1770776370149,3.84196526,84.03,83.991,3.7852881]
[1770776374348,94.98,84.051,83.963,47.0]
[1770776374349,3.84196526,84.019,83.974,3.7852881]
[1770776375150,3.84196526,84.019,83.975,10.7244]
[1770776375352,3.84196526,84.019,83.962,169.18]
[1770776375353,2.90280165,84.04,83.991,3.7852881]
[1770776375749,3.84196526,84.043,83.991,3.7852881]
[1770776376958,3.84196526,84.041,83.996,3.7852881]
[1770776378454,2.90280165,84.04,83.996,3.7852881]
[1770776378756,2.90280165,84.04,83.997,10.7216]
[1770776378757,3.84196526,84.039,83.997,10.7216]
[1770776380253,3.84196526,84.039,83.998,3.7852881]
[1770776380953,3.84196526,84.037,83.99,2.90280165]
[1770776381265,3.84196526,84.037,83.989,10.7225]
[1770776381755,166.5859,84.096,83.978,47.0]
[1770776381756,3.84196526,84.122,84.031,3.7852881]
[1770776381958,3.84196526,84.109,84.054,3.7852881]
[1770776382259,3.84196526,84.097,84.054,3.7852881]
[1770776382460,3.84196526,84.089,84.041,3.7852881]
[1770776383946,2.90280165,84.08,84.041,3.7852881]
[1770776384145,3.84196526,84.079,84.03,2.90280165]
[1770776384456,3.84196526,84.079,84.031,3.7852881]
[1770776384659,3.84196526,84.079,84.033,3.7852881]
[1770776385456,14.0,84.09,84.051,3.7852881]
[1770776385653,35.71,84.155,84.01,104.5]
[1770776385654,3.84196526,84.11,84.061,3.7852881]
[1770776386052,3.84196526,84.11,84.07,2.90280165]
[1770776387362,3.84196526,84.11,84.064,3.7852881]
[1770776388557,17.84196526,84.11,84.064,3.7852881]
[1770776389464,3.84196526,84.109,84.064,3.7852881]
[1770776389660,14.0,84.11,84.053,10.7144]
[1770776389661,3.84196526,84.099,84.053,10.7144]
[1770776389860,3.84196526,84.099,84.051,3.7852881]
[1770776391368,3.84196526,84.099,84.061,3.79055254]
[1770776393069,3.84196526,84.099,84.052,10.7145]
[1770776393564,3.84196526,84.099,84.053,3.79055254]
[1770776404766,3.84196526,84.099,84.06,2.89767431]
[1770776404971,3.84196526,84.099,84.053,3.79055254]
[1770776406965,3.86274098,84.098,84.053,3.79055254]
[1770776407771,3.86274098,84.089,84.053,3.79055254]
[1770776407973,3.86274098,84.089,84.031,3.79055254]
[1770776408170,3.86274098,84.079,84.031,3.79055254]
[1770776408776,3.86274098,84.072,84.022,14.50885254]
[1770776409168,2.89767431,84.07,84.023,3.79055254]
[1770776409370,3.86274098,84.069,84.023,3.79055254]
[1770776410474,3.86274098,84.069,84.026,3.79055254]
[1770776411477,10.7103,84.086,84.041,3.79055254]
[1770776411779,3.86274098,84.094,84.051,3.79055254]
[1770776414681,10.7095,84.092,84.051,3.79055254]
[1770776414884,3.86274098,84.091,84.051,3.79055254]
[1770776415076,3.86274098,84.109,84.054,3.79055254]
[1770776415474,3.86274098,84.109,84.05,2.89797986]
[1770776415475,3.86274098,84.109,84.063,14.50375254]
[1770776415781,3.86274098,84.109,84.064,3.79055254]
[1770776416371,3.86274098,84.109,84.066,3.79055254]
[1770776416577,3.86274098,84.121,84.071,3.79055254]
[1770776416778,3.86274098,84.121,84.081,3.79055254]
[1770776417485,3.86274098,84.121,84.083,10.7106]
[1770776417785,3.86274098,84.135,84.091,3.79055254]
[1770776418277,3.86274098,84.133,84.091,3.79055254]
[1770776418482,3.86274098,84.133,84.08,6.6885324]
[1770776418786,3.86274098,84.133,84.081,3.79055254]
[1770776419779,3.86274098,84.131,84.081,14.50135254]
[1770776420284,3.86274098,84.131,84.082,3.74928954]
[1770776420478,3.74652327,84.129,84.082,3.74928954]
[1770776420681,3.74652327,84.119,84.06,2.89797986]
[1770776420889,3.74652327,84.109,84.06,2.89797986]
[1770776421486,3.74652327,84.109,84.06,6.6472694]
[1770776422274,3.74652327,84.109,84.061,3.74928954]
[1770776422476,3.74652327,84.109,84.071,3.74928954]
[1770776422681,3.74652327,84.122,84.071,3.74928954]
[1770776422983,3.74652327,84.122,84.08,2.89797986]
[1770776423581,3.9807059,84.136,84.091,3.89486551]
[1770776424588,3.9807059,84.136,84.092,3.89486551]
[1770776425687,3.9807059,84.136,84.095,10.709]
[1770776427583,3.9807059,84.153,84.111,3.89486551]
[1770776428283,3.9807059,84.153,84.112,10.7069]
[1770776428483,3.9807059,84.153,84.1,2.89797986]
[1770776428687,3.9807059,84.149,84.1,6.79284537]
[1770776429793,3.9807059,84.149,84.101,10.7083]
[1770776431702,3.9807059,84.149,84.102,3.89486551]
[1770776436207,3.9807059,84.149,84.089,47.0]
[1770776436208,3.9807059,84.139,84.09,3.89486551]
[1770776436399,3.9807059,84.139,84.089,10.7098]
[1770776437207,3.9807059,84.134,84.089,10.7098]
[1770776439006,3.9807059,84.134,84.089,14.60466551]
[1770776439210,94.9,84.184,84.081,47.0]
[1770776439211,3.9807059,84.169,84.111,3.89486551]
[1770776439513,2.89797986,84.16,84.111,3.89486551]
[1770776439713,17.57958576,84.16,84.111,3.89486551]
[1770776440212,3.9807059,84.159,84.111,3.89486551]
[1770776441807,10.7015,84.155,84.111,3.89486551]
[1770776442013,14.6822059,84.155,84.111,3.89486551]
[1770776444307,10.7019,84.152,84.111,3.89486551]
[1770776449320,3.9807059,84.152,84.115,3.89486551]
[1770776449615,301.98020083,84.212,84.085,10.92519247]
[1770776449616,3.9807059,84.189,84.14,2.89797986]
[1770776450011,3.9807059,84.189,84.131,3.71909567]
[1770776450714,14.53315566,84.175,84.131,3.71909567]
[1770776450913,3.83415566,84.174,84.131,3.71909567]
[1770776452318,3.83415566,84.174,84.133,3.71909567]
[1770776455225,3.83415566,84.174,84.13,2.89797986]
[1770776456025,9.89797986,84.18,84.121,3.71909567]
[1770776456026,2.89797986,84.17,84.121,3.71909567]
[1770776456222,2.89797986,84.17,84.117,10.7062]
[1770776456223,3.83415566,84.159,84.117,10.7062]
[1770776456828,3.83415566,84.149,84.107,3.71909567]
[1770776460425,3.83415566,84.162,84.111,3.71909567]
[1770776460627,3.83415566,84.162,84.121,3.71909567]
[1770776460926,3.83415566,84.179,84.121,3.71909567]
[1770776461131,3.83415566,84.174,84.132,10.7043]
[1770776461826,3.83415566,84.174,84.135,10.704]
[1770776462031,10.6979,84.184,84.141,3.71909567]
[1770776462328,3.83415566,84.183,84.141,3.71909567]
[1770776462716,3.83415566,84.183,84.141,14.42229567]
[1770776462917,2.89797986,84.18,84.13,2.89797986]
[1770776463121,3.83415566,84.179,84.13,6.61707553]